bitfinex/quotes_BTCUSD_20250616
["timestamp","ask_amount","ask_price","bid_price","bid_amount"]
[1750063968704,0.07246708,107310.0,107300.0,0.38612972]
[1750063968908,0.50291251,107310.0,107300.0,0.36867121]
[1750063969112,0.50291251,107310.0,107300.0,0.39618809]
[1750063969623,0.50291251,107310.0,107300.0,0.41364661]
[1750063970241,0.50291251,107310.0,107300.0,0.39618809]
[1750063970640,0.50291251,107310.0,107300.0,0.41364661]
[1750063971039,0.47001251,107310.0,107300.0,0.50988837]
[1750063971243,0.47001251,107310.0,107300.0,0.52599423]
[1750063971455,0.47001251,107310.0,107300.0,0.49242985]
[1750063971668,0.48551251,107310.0,107300.0,0.49242985]
[1750063972319,0.44599251,107310.0,107300.0,0.49242985]
[1750063972528,0.44599251,107310.0,107300.0,0.52619392]
[1750063972529,0.43049251,107310.0,107300.0,0.52619392]
[1750063972741,0.47001251,107310.0,107300.0,0.52619431]
[1750063972947,0.47001251,107310.0,107300.0,0.50872985]
[1750063973149,0.47001251,107310.0,107300.0,0.52619384]
[1750063973561,0.47001251,107310.0,107300.0,0.50872985]
[1750063973904,0.03956708,107310.0,107300.0,0.50872985]
[1750063974780,0.47001251,107310.0,107300.0,0.52619896]
[1750063974989,0.03956708,107310.0,107300.0,0.52619896]
[1750063975382,0.03956708,107310.0,107300.0,0.52619853]
[1750063975586,4.708e-05,107310.0,107300.0,0.52619853]
[1750063975761,0.03956708,107310.0,107300.0,0.9566439]
[1750063975965,0.03956708,107310.0,107300.0,0.95664391]
[1750063976179,0.03956708,107310.0,107300.0,0.97184364]
[1750063976610,0.03956708,107310.0,107300.0,0.9718424]
[1750063976754,0.03956708,107310.0,107300.0,0.97184224]
[1750063976955,0.03956708,107310.0,107300.0,0.95437528]
[1750063977208,0.03956708,107310.0,107300.0,0.97084127]
[1750063977424,0.03956708,107310.0,107300.0,0.97084105]
[1750063977625,0.03956708,107310.0,107300.0,0.97084092]
[1750063977838,0.03956708,107310.0,107300.0,0.96356124]
[1750063978031,0.03956708,107310.0,107300.0,0.98102681]
[1750063978236,0.03956708,107310.0,107300.0,0.98402679]
[1750063978447,0.62874,107330.0,107310.0,0.2121941]
[1750063978647,0.00547083,107330.0,107320.0,0.31055304]
[1750063978958,0.49053626,107330.0,107320.0,0.48029375]
[1750063979176,0.06009083,107330.0,107320.0,0.46283304]
[1750063979378,0.49053626,107330.0,107320.0,0.46283304]
[1750063979608,0.06009083,107330.0,107320.0,0.48029393]
[1750063979816,0.06109083,107330.0,107320.0,0.48029393]
[1750063980197,0.49153626,107330.0,107320.0,0.48029393]
[1750063980410,0.49153626,107330.0,107320.0,0.48029392]
[1750063980608,0.49253626,107330.0,107320.0,0.46283304]
[1750063981114,0.06109083,107330.0,107320.0,0.46283304]
[1750063981726,0.06109083,107330.0,107320.0,0.48029393]
[1750063982146,0.06009083,107330.0,107320.0,0.48029393]
[1750063982490,0.02057083,107330.0,107320.0,0.48129393]
[1750063982728,0.06009083,107330.0,107320.0,0.31155304]
[1750063982944,0.06009083,107330.0,107320.0,0.48129393]
[1750063983147,0.06009083,107330.0,107320.0,0.48129396]
[1750063983576,0.06009083,107330.0,107320.0,0.46383304]
[1750063984177,0.02057083,107330.0,107320.0,0.46383304]
[1750063984420,0.06009083,107330.0,107320.0,0.48129349]
[1750063984831,0.06009083,107330.0,107320.0,0.48129342]
[1750063985038,0.06009083,107330.0,107320.0,0.46383304]
[1750063985454,0.06009083,107330.0,107320.0,0.48129323]
[1750063985651,0.06009083,107330.0,107320.0,0.4812935]
[1750063985856,0.06009083,107330.0,107320.0,0.46383304]
[1750063986000,0.06009083,107330.0,107320.0,0.48129353]
[1750063986631,0.06009083,107330.0,107320.0,0.48125353]
[1750063987030,0.06009083,107330.0,107320.0,0.46379304]
[1750063987227,0.06009083,107330.0,107320.0,0.48125354]
[1750063987537,0.07579083,107330.0,107320.0,0.48125354]
[1750063987949,0.07579083,107330.0,107320.0,0.32901354]
[1750063988148,0.07579083,107330.0,107320.0,0.48125354]
[1750063988405,0.07579083,107330.0,107320.0,0.46379304]
[1750063988852,0.50602483,107330.0,107320.0,0.48125354]
[1750063989677,0.50602483,107330.0,107320.0,0.46379304]
[1750063989885,0.50602483,107330.0,107320.0,0.31155304]
[1750063990117,0.50602483,107330.0,107320.0,0.46379304]
[1750063990323,0.50602483,107330.0,107320.0,0.48125363]
[1750063990530,0.46650483,107330.0,107320.0,0.38501187]
[1750063990760,0.50598483,107330.0,107320.0,0.38501318]
[1750063990974,0.50598483,107330.0,107320.0,0.36755128]
[1750063991159,0.50598483,107330.0,107320.0,0.38501331]
[1750063991636,0.50598483,107330.0,107320.0,0.21531128]
[1750063991824,0.50598483,107330.0,107320.0,0.38501331]
[1750063992066,0.52461755,107330.0,107320.0,0.23277331]
[1750063992281,0.73890911,107330.0,107320.0,0.23277406]
[1750063992489,1.06959284,107330.0,107320.0,0.2153118]
[1750063992704,1.06959284,107330.0,107320.0,0.38501761]
[1750063992918,1.06959284,107330.0,107320.0,0.39433587]
[1750063993134,1.06959284,107330.0,107320.0,0.39433583]
[1750063993342,1.06959284,107330.0,107320.0,0.37686938]
[1750063993532,1.06027639,107330.0,107320.0,0.3943358]
[1750063993666,0.8739352,107330.0,107320.0,0.40365281]
[1750063993880,0.8739352,107330.0,107320.0,0.38618643]
[1750063994086,0.8739352,107330.0,107320.0,0.40365277]
[1750063994293,1.06027639,107330.0,107320.0,0.39433548]
[1750063994692,0.8739352,107330.0,107320.0,0.40365244]
[1750063995064,0.8739352,107330.0,107320.0,0.38618599]
[1750063995302,0.8739352,107330.0,107320.0,0.40365238]
[1750063995812,0.8739352,107330.0,107320.0,0.38618599]
[1750063996012,0.8739352,107330.0,107320.0,0.25141236]
[1750063996214,0.8739352,107330.0,107320.0,0.38618599]
[1750063996574,1.06027639,107330.0,107320.0,0.4036523]
[1750063996756,1.06027639,107330.0,107320.0,0.40365234]
[1750063996959,1.06027639,107330.0,107320.0,0.38618599]
[1750063997160,0.8739352,107330.0,107320.0,0.40365238]
[1750063997593,1.06027639,107330.0,107320.0,0.39433506]
[1750063997766,1.06027639,107330.0,107320.0,0.37686868]
[1750063997962,1.06027639,107330.0,107320.0,0.23277765]
[1750063998303,1.06027639,107330.0,107320.0,0.36755128]
[1750063998506,1.06027639,107330.0,107320.0,0.39433504]
[1750063998718,0.86461815,107330.0,107320.0,0.39433509]
[1750063998920,0.86461815,107330.0,107320.0,0.4036524]
[1750063999556,0.86461815,107330.0,107320.0,0.40365235]
[1750063999557,0.87393512,107330.0,107320.0,0.40365235]
[1750063999784,0.87393512,107330.0,107320.0,0.40365233]
[1750064000026,0.86461815,107330.0,107320.0,0.40365274]
[1750064000282,0.86461815,107330.0,107320.0,0.40365353]
[1750064000499,0.86461815,107330.0,107320.0,0.38618599]
[1750064000950,0.86461815,107330.0,107320.0,0.40365357]
[1750064001159,0.86461815,107330.0,107320.0,0.23394599]
[1750064001375,0.86461815,107330.0,107320.0,0.40365376]
[1750064001800,0.43438363,107330.0,107320.0,0.38618599]
[1750064002047,0.43438355,107330.0,107320.0,0.40365447]
[1750064002257,0.8553011,107330.0,107320.0,0.4036542]
[1750064002468,0.8553011,107330.0,107320.0,0.38618599]
[1750064002674,0.86461746,107330.0,107320.0,0.38618599]
[1750064002906,0.86471383,107330.0,107320.0,0.40365424]
[1750064003349,0.88334699,107330.0,107320.0,0.38618599]
[1750064003567,1.50933543,107330.0,107320.0,0.19667647]
[1750064003781,1.50933543,107330.0,107320.0,0.20599413]
[1750064003782,1.50001977,107330.0,107320.0,0.20599413]
[1750064003983,1.50001977,107330.0,107320.0,0.38502363]
[1750064004153,1.31367858,107330.0,107320.0,0.36755171]
[1750064004346,1.31367858,107330.0,107320.0,0.38502289]
[1750064004550,1.50933682,107330.0,107320.0,0.39434056]
[1750064004764,1.46054037,107330.0,107320.0,0.2246292]
[1750064004963,1.06974072,107330.0,107320.0,0.39434033]
[1750064005161,1.06974072,107330.0,107320.0,0.24210033]
[1750064005479,1.06042401,107330.0,107320.0,0.39434033]
[1750064005692,1.06042401,107330.0,107320.0,0.39334033]
[1750064005893,1.06042401,107330.0,107320.0,0.3758692]
[1750064006096,1.06142401,107330.0,107320.0,0.3758692]
[1750064006316,1.06242401,107330.0,107320.0,0.39334034]
[1750064006633,1.06242401,107330.0,107320.0,0.39334041]
[1750064006840,1.06242401,107330.0,107320.0,0.3758692]
[1750064007044,1.05310713,107330.0,107320.0,0.38402309]
[1750064007248,1.05310713,107330.0,107320.0,0.38402374]
[1750064007452,0.62272604,107330.0,107320.0,0.36655171]
[1750064007659,1.05310713,107330.0,107320.0,0.36655171]
[1750064007844,1.04379016,107330.0,107320.0,0.35723413]
[1750064009140,1.04379016,107330.0,107320.0,0.36655171]
[1750064009995,0.61340907,107330.0,107320.0,0.36655171]
[1750064010203,1.04379016,107330.0,107320.0,0.35723413]
[1750064016468,1.31243016,107330.0,107320.0,0.35723413]
[1750064020515,1.31239016,107330.0,107320.0,0.35723413]
[1750064021170,1.31239016,107330.0,107320.0,0.34791647]
[1750064021370,1.30307311,107330.0,107320.0,0.34791647]
[1750064021578,1.30307311,107330.0,107320.0,0.35723422]
[1750064024895,1.73342638,107330.0,107320.0,0.35723422]
[1750064025328,1.3030592,107330.0,107320.0,0.34787647]
[1750064026145,1.73342638,107330.0,107320.0,0.34787647]
[1750064026342,1.73342638,107330.0,107320.0,0.35719431]
[1750064027390,1.3030592,107330.0,107320.0,0.35719431]
[1750064029280,1.73342638,107330.0,107320.0,0.35719431]
[1750064030554,1.3030592,107330.0,107320.0,0.35719431]
[1750064031842,0.37827083,107330.0,107320.0,0.45102777]
[1750064032064,0.00747083,107330.0,107320.0,0.84163671]
[1750064032268,0.38691083,107330.0,107320.0,0.57886953]
[1750064032473,0.38691083,107330.0,107320.0,1.00923671]
[1750064032890,0.34647083,107330.0,107320.0,1.00923671]
[1750064033144,0.34647083,107330.0,107320.0,0.57886953]
[1750064033352,0.34647083,107330.0,107320.0,0.59633107]
[1750064033559,0.38591083,107330.0,107320.0,0.59633102]
[1750064033763,0.38491083,107330.0,107320.0,0.57886953]
[1750064033969,0.38491083,107330.0,107320.0,0.59633045]
[1750064034178,0.38491083,107330.0,107320.0,0.59633026]
[1750064034397,0.38491083,107330.0,107320.0,0.59733053]
[1750064034610,0.38491083,107330.0,107320.0,0.59733054]
[1750064034839,0.38491083,107330.0,107320.0,0.5973306]
[1750064035068,0.38491083,107330.0,107320.0,0.59733061]
[1750064035293,0.38491083,107330.0,107320.0,0.57986953]
[1750064035462,0.38491083,107330.0,107320.0,0.5973306]
[1750064035919,0.38491083,107330.0,107320.0,0.59732949]
[1750064036108,0.38491083,107330.0,107320.0,0.57986953]
[1750064036311,0.38491083,107330.0,107320.0,0.59732782]
[1750064036515,0.38491083,107330.0,107320.0,0.59732763]
[1750064037101,0.38491083,107330.0,107320.0,0.59732742]
[1750064037564,0.38491083,107330.0,107320.0,0.59732687]
[1750064038098,0.38491083,107330.0,107320.0,0.59732675]
[1750064038314,0.38491083,107330.0,107320.0,0.57986953]
[1750064038529,0.38491083,107330.0,107320.0,0.59732673]
[1750064038948,0.38491083,107330.0,107320.0,0.57982953]
[1750064039160,0.04491083,107330.0,107320.0,0.59728728]
[1750064039371,0.04491083,107330.0,107320.0,0.57982953]
[1750064039638,0.04491083,107330.0,107320.0,0.59728654]
[1750064039867,0.04491083,107330.0,107320.0,0.59728658]
[1750064040073,0.04491083,107330.0,107320.0,0.57982953]
[1750064040497,0.04491083,107330.0,107320.0,1.01019671]
[1750064040923,0.04491083,107330.0,107320.0,0.57982953]
[1750064041136,0.04441083,107330.0,107320.0,0.57982953]
[1750064041365,0.04441083,107330.0,107320.0,1.01019671]
[1750064042400,0.00497083,107330.0,107320.0,1.01019671]
[1750064042632,0.04441083,107330.0,107320.0,1.01019671]
[1750064045245,0.04441083,107330.0,107320.0,1.42516389]
[1750064045463,0.04441083,107330.0,107320.0,0.57982953]
[1750064045671,0.04441083,107330.0,107320.0,1.01019671]
[1750064046087,0.04441083,107330.0,107320.0,0.85803671]
[1750064046291,0.04441083,107330.0,107320.0,0.42766953]
[1750064046427,0.04441083,107330.0,107320.0,1.01019671]
[1750064047465,0.04441083,107330.0,107320.0,0.93499814]
[1750064047844,0.04441083,107330.0,107320.0,0.95245685]
[1750064048037,0.00497083,107330.0,107320.0,0.95245668]
[1750064048234,0.04441083,107330.0,107320.0,0.93499814]
[1750064048486,0.02925455,107330.0,107320.0,0.93499814]
[1750064048870,0.02925455,107330.0,107320.0,0.80029722]
[1750064049073,0.02925455,107330.0,107320.0,0.78283814]
[1750064049285,0.02925455,107330.0,107320.0,0.50665002]
[1750064049486,0.01806218,107330.0,107320.0,0.93701721]
[1750064049705,0.01806218,107330.0,107320.0,0.9370172]
[1750064049908,0.01806218,107330.0,107320.0,0.91955814]
[1750064050120,0.01806218,107330.0,107320.0,0.50665003]
[1750064050324,0.01806218,107330.0,107320.0,0.91955814]
[1750064050522,0.44616718,107340.0,107330.0,0.21429132]
[1750064050785,0.48556718,107340.0,107330.0,0.32799214]
[1750064050978,0.48556718,107340.0,107330.0,0.32799208]
[1750064051140,0.0552,107340.0,107330.0,0.32799208]
[1750064051356,0.44616718,107340.0,107330.0,0.31053308]
[1750064051570,0.48556718,107340.0,107330.0,0.32799208]
[1750064051767,0.48756718,107340.0,107330.0,0.32799208]
[1750064052349,0.48756718,107340.0,107330.0,0.31053308]
[1750064052810,0.48756718,107340.0,107330.0,0.32799208]
[1750064053234,0.48756718,107340.0,107330.0,0.31053308]
[1750064053440,0.48756718,107340.0,107330.0,0.32799208]
[1750064053649,0.48756718,107340.0,107330.0,0.31053308]
[1750064055077,0.50386718,107340.0,107330.0,0.46265308]
[1750064057564,0.0735,107340.0,107330.0,0.46265308]
[1750064057775,0.50386718,107340.0,107330.0,0.46265308]
[1750064058206,0.48756718,107340.0,107330.0,0.46265308]
[1750064059275,0.48656718,107340.0,107330.0,0.46265308]
[1750064061280,0.50236718,107340.0,107330.0,0.46265308]
[1750064062182,0.48656718,107340.0,107330.0,0.46265308]
[1750064063990,0.48656718,107340.0,107330.0,0.48011251]
[1750064064191,0.48656718,107340.0,107330.0,0.48011258]
[1750064064305,0.48656718,107340.0,107330.0,0.48011257]
[1750064064506,0.48656718,107340.0,107330.0,0.48011258]
[1750064064710,0.50286718,107340.0,107330.0,0.4801126]
[1750064064959,0.48656718,107340.0,107330.0,0.46265308]
[1750064065380,0.48656718,107340.0,107330.0,0.4801126]
[1750064065999,0.48656718,107340.0,107330.0,0.46265308]
[1750064066245,0.0717,107340.0,107330.0,0.48011242]
[1750064066572,0.50206718,107340.0,107330.0,0.46265308]
[1750064066805,0.50206718,107340.0,107330.0,0.48011237]
[1750064067236,0.50206718,107340.0,107330.0,0.48011236]
[1750064067472,0.50206718,107340.0,107330.0,0.48011237]
[1750064067855,0.48656718,107340.0,107330.0,0.48011237]
[1750064068179,0.48656718,107340.0,107330.0,0.46265308]
[1750064068387,0.48656718,107340.0,107330.0,0.48011236]
[1750064068711,0.50296718,107340.0,107330.0,0.48011237]
[1750064069194,0.50296718,107340.0,107330.0,0.48011332]
[1750064069373,0.50296718,107340.0,107330.0,0.48011354]
[1750064069574,0.50296718,107340.0,107330.0,0.48011368]
[1750064069930,0.50296718,107340.0,107330.0,0.48011366]
[1750064070130,0.50296718,107340.0,107330.0,0.46265308]
[1750064070337,0.50296718,107340.0,107330.0,0.48011366]
[1750064070511,0.50296718,107340.0,107330.0,0.48011418]
[1750064070843,1.47828927,107340.0,107330.0,0.20379805]
[1750064071047,1.4876058,107340.0,107330.0,0.38383182]
[1750064071262,1.4876058,107340.0,107330.0,0.36637192]
[1750064071842,1.4876058,107340.0,107330.0,0.38383252]
[1750064072047,1.4876058,107340.0,107330.0,0.36637192]
[1750064072259,1.4876058,107340.0,107330.0,0.21429192]
[1750064072461,1.4876058,107340.0,107330.0,0.36637192]
[1750064072682,1.4876058,107340.0,107330.0,0.38383242]
[1750064072884,1.4876058,107340.0,107330.0,0.23175239]
[1750064073092,1.47829013,107340.0,107330.0,0.35705521]
[1750064073297,1.47829013,107340.0,107330.0,0.366372]
[1750064073716,1.50629013,107340.0,107330.0,0.366372]
[1750064073927,1.50629013,107340.0,107330.0,0.214292]
[1750064074130,1.50629013,107340.0,107330.0,0.366372]
[1750064074668,1.50629013,107340.0,107330.0,0.38383161]
[1750064074888,1.50629013,107340.0,107330.0,0.39314811]
[1750064075275,1.50629013,107340.0,107330.0,0.366372]
[1750064075485,1.50629013,107340.0,107330.0,0.35705521]
[1750064075881,1.49697429,107340.0,107330.0,0.35705521]
[1750064076021,1.48765819,107340.0,107330.0,0.15208]
[1750064076219,1.45645819,107340.0,107330.0,0.15208]
[1750064076810,1.48845819,107340.0,107330.0,0.15208]
[1750064077502,1.48845819,107340.0,107330.0,0.34773816]
[1750064079123,1.44905819,107340.0,107330.0,0.34773816]
[1750064079322,1.32076665,107340.0,107330.0,0.36637149]
[1750064079528,1.51640632,107340.0,107330.0,0.34773816]
[1750064079804,1.51640632,107340.0,107330.0,0.35705495]
[1750064080029,1.51640632,107340.0,107330.0,0.36637166]
[1750064080387,1.29068249,107340.0,107330.0,0.37568828]
[1750064080587,0.42063194,107340.0,107330.0,0.38500473]
[1750064080791,1.3207263,107340.0,107330.0,0.38500473]
[1750064080990,1.33004249,107340.0,107330.0,0.38500473]
[1750064081445,1.51636632,107340.0,107330.0,0.37568828]
[1750064083358,1.51636632,107340.0,107330.0,0.15208]
[1750064083560,1.51636632,107340.0,107330.0,0.35705486]
[1750064084690,1.51636632,107340.0,107330.0,0.36637157]
[1750064088937,1.51636632,107340.0,107330.0,0.35705486]
[1750064089153,1.50705048,107340.0,107330.0,0.19565807]
[1750064089274,0.57627486,107330.0,107320.0,0.20499413]
[1750064089478,0.8296179,107330.0,107320.0,0.36639144]
[1750064090283,0.82961738,107330.0,107320.0,0.37570893]
[1750064090595,0.83893435,107330.0,107320.0,0.22362893]
[1750064090881,0.8482514,107330.0,107320.0,0.37570902]
[1750064091168,0.8482514,107330.0,107320.0,0.38502633]
[1750064091382,0.8482514,107330.0,107320.0,0.38602633]
[1750064092048,0.82961738,107330.0,107320.0,0.38602633]
[1750064093371,0.83893435,107330.0,107320.0,0.38602633]
[1750064094151,0.86897669,107330.0,107320.0,0.38602633]
[1750064094668,0.85965998,107330.0,107320.0,0.38602633]
[1750064095424,0.86897669,107330.0,107320.0,0.38602633]
[1750064096736,0.8202999,107330.0,107320.0,0.38602633]
[1750064096989,0.83524345,107330.0,107320.0,0.38602633]
[1750064097221,0.78656718,107330.0,107320.0,0.38602633]
[1750064097454,0.80972718,107330.0,107320.0,0.38602633]
[1750064098385,0.81904345,107330.0,107320.0,0.38602633]
[1750064098613,0.34,107330.0,107320.0,0.38582653]
[1750064100506,0.37936,107330.0,107320.0,0.94433547]
[1750064100956,0.37936,107330.0,107320.0,0.51396829]
[1750064101657,0.37936,107330.0,107320.0,0.49856829]
[1750064102349,0.34,107330.0,107320.0,0.49856829]
[1750064102577,0.37936,107330.0,107320.0,0.49856829]
[1750064104696,0.03936,107330.0,107320.0,0.92893547]
[1750064104916,0.03936,107330.0,107320.0,0.49856829]
[1750064105138,0.03936,107330.0,107320.0,0.51602693]
[1750064105355,0.03936,107330.0,107320.0,0.51602652]
[1750064105577,0.03936,107330.0,107320.0,0.51602645]
[1750064105807,0.03936,107330.0,107320.0,0.49856829]
[1750064106029,0.34,107340.0,107330.0,0.22989132]
[1750064106253,0.37936,107340.0,107330.0,0.77395579]
[1750064106467,0.37936,107340.0,107330.0,0.35938778]
[1750064106684,0.37936,107340.0,107330.0,0.35938735]
[1750064106927,0.37936,107340.0,107330.0,0.77230026]
[1750064107343,0.37936,107340.0,107330.0,0.34193308]
[1750064107566,0.38036,107340.0,107330.0,0.34193308]
[1750064107777,0.04036,107340.0,107330.0,0.77230026]
[1750064108250,0.04136,107340.0,107330.0,0.77230026]
[1750064108683,0.04136,107340.0,107330.0,0.75650026]
[1750064109109,0.04036,107340.0,107330.0,0.75650026]
[1750064109360,0.04036,107340.0,107330.0,0.32613308]
[1750064109573,0.001,107340.0,107330.0,0.32613308]
[1750064109786,0.04036,107340.0,107330.0,0.32613308]
[1750064109998,0.04036,107340.0,107330.0,0.75650026]
[1750064110705,0.04032,107340.0,107330.0,0.75650026]
[1750064110920,0.04032,107340.0,107330.0,0.32613308]
[1750064111138,0.04032,107340.0,107330.0,0.32713308]
[1750064111553,0.03932,107340.0,107330.0,0.32713308]
[1750064113535,0.72868318,107350.0,107340.0,0.21427135]
[1750064113735,0.76814435,107350.0,107340.0,0.36631135]
[1750064114707,0.76914435,107350.0,107340.0,0.36631135]
[1750064115305,0.77014435,107350.0,107340.0,0.36631135]
[1750064115742,0.78664435,107350.0,107340.0,0.36631135]
[1750064116176,0.78664435,107350.0,107340.0,0.34631135]
[1750064116591,0.77014435,107350.0,107340.0,0.34631135]
[1750064116808,0.33977717,107350.0,107340.0,0.36376275]
[1750064117035,0.77014435,107350.0,107340.0,0.36376266]
[1750064117254,0.77014435,107350.0,107340.0,0.38239406]
[1750064117464,0.77014435,107350.0,107340.0,0.38239405]
[1750064118124,0.77014435,107350.0,107340.0,0.38239402]
[1750064118328,0.77014435,107350.0,107340.0,0.38239417]
[1750064118455,0.30045717,107350.0,107340.0,0.36494277]
[1750064118672,0.77014435,107350.0,107340.0,0.38239407]
[1750064118855,0.77014435,107350.0,107340.0,0.3823935]
[1750064119268,0.73082435,107350.0,107340.0,0.3823935]
[1750064119495,0.30045717,107350.0,107340.0,0.47863526]
[1750064119732,0.32427717,107350.0,107340.0,0.92530242]
[1750064119952,0.32427717,107350.0,107340.0,0.49493524]
[1750064120166,0.01631717,107350.0,107340.0,0.4949336]
[1750064120389,0.05563717,107350.0,107340.0,0.47748453]
[1750064120601,0.01631717,107350.0,107340.0,0.47863355]
[1750064120820,0.05463717,107350.0,107340.0,0.49473355]
[1750064121031,0.05363717,107350.0,107340.0,0.4947333]
[1750064121251,0.05463717,107350.0,107340.0,0.4947333]
[1750064121454,0.05463717,107350.0,107340.0,0.49473344]
[1750064121653,0.05463717,107350.0,107340.0,0.49573329]
[1750064121986,0.05363717,107350.0,107340.0,0.47828453]
[1750064122209,0.05363717,107350.0,107340.0,0.4957333]
[1750064122686,0.05363717,107350.0,107340.0,0.46218453]
[1750064122903,0.05363717,107350.0,107340.0,0.4796333]
[1750064123135,0.05363717,107350.0,107340.0,0.4795329]
[1750064123358,0.48400435,107350.0,107340.0,0.46218453]
[1750064124066,0.48400435,107350.0,107340.0,0.47953296]
[1750064124273,0.48400435,107350.0,107340.0,0.46218453]
[1750064124494,0.05363717,107350.0,107340.0,0.46218453]
[1750064124919,0.05363717,107350.0,107340.0,0.47953296]
[1750064125146,0.05363717,107350.0,107340.0,0.46218453]
[1750064125591,0.05363717,107350.0,107340.0,0.47848453]
[1750064126040,0.05363717,107350.0,107340.0,0.49583297]
[1750064126260,0.05363717,107350.0,107340.0,0.92630056]
[1750064126479,0.05363717,107350.0,107340.0,0.90885171]
[1750064126705,0.05363717,107350.0,107340.0,0.49593339]
[1750064127165,0.05363717,107350.0,107340.0,0.49593338]
[1750064127423,0.05363717,107350.0,107340.0,0.92630055]
[1750064128073,0.05363717,107350.0,107340.0,0.49593337]
[1750064128334,0.05363717,107350.0,107340.0,0.47848453]
[1750064128745,0.05363717,107350.0,107340.0,0.46218453]
[1750064129085,0.05363717,107350.0,107340.0,0.47963336]
[1750064129307,0.05363717,107350.0,107340.0,0.46218453]
[1750064129720,0.04244632,107350.0,107340.0,0.47738453]
[1750064129939,0.04244632,107350.0,107340.0,0.49483275]
[1750064130138,0.04244632,107350.0,107340.0,0.47738453]
[1750064130351,0.04244632,107350.0,107340.0,0.90775171]
[1750064130975,0.04244632,107350.0,107340.0,0.92519989]
[1750064131215,0.00312632,107350.0,107340.0,1.35556668]
[1750064131435,0.04244632,107350.0,107340.0,0.92511799]
[1750064131860,0.00312632,107350.0,107340.0,0.92327171]
[1750064132084,0.04244632,107350.0,107340.0,0.94071671]
[1750064132295,0.04244632,107350.0,107340.0,0.78875671]
[1750064132579,0.04244632,107350.0,107340.0,0.90767171]
[1750064132781,0.04244632,107350.0,107340.0,0.92511657]
[1750064133075,0.04244632,107350.0,107340.0,0.9251156]
[1750064133282,0.04244632,107350.0,107340.0,0.92511431]
[1750064133496,0.04244632,107350.0,107340.0,0.90767171]
[1750064133698,0.04244632,107350.0,107340.0,0.92327171]
[1750064133903,0.04244632,107350.0,107340.0,0.94071395]
[1750064134109,0.04244632,107350.0,107340.0,0.92327171]
[1750064134767,0.04244632,107350.0,107340.0,0.94071375]
[1750064135185,0.00312632,107350.0,107340.0,0.94071376]
[1750064135395,0.04244632,107350.0,107340.0,0.94071376]
[1750064135599,0.04244632,107350.0,107340.0,0.92327171]
[1750064136026,0.04244632,107350.0,107340.0,0.9407138]
[1750064136248,0.04244632,107350.0,107340.0,0.92511399]
[1750064136448,0.04244632,107350.0,107340.0,0.90767171]
[1750064136669,0.04244632,107350.0,107340.0,0.92511421]
[1750064137098,0.04244632,107350.0,107340.0,0.90767171]
[1750064138240,0.04244632,107350.0,107340.0,0.92327171]
[1750064139330,0.04244632,107350.0,107340.0,1.61817974]
[1750064139543,0.00312632,107350.0,107340.0,1.91697974]
[1750064139755,0.04928283,107360.0,107350.0,0.24635138]
[1750064139962,0.04937046,107360.0,107350.0,0.92492032]
[1750064140376,0.01005046,107360.0,107350.0,0.92492032]
[1750064140579,0.01005046,107360.0,107350.0,0.75646032]
[1750064140783,0.04933046,107360.0,107350.0,0.90842032]
[1750064140957,0.04933046,107360.0,107350.0,0.32609314]
[1750064141200,0.45601764,107360.0,107350.0,0.31049314]
[1750064141413,0.06493046,107360.0,107350.0,0.46245314]
[1750064142400,0.06493046,107360.0,107350.0,0.89282032]
[1750064142604,0.06593046,107360.0,107350.0,0.89282032]
[1750064142784,0.05033046,107360.0,107350.0,0.47795314]
[1750064142999,0.04933046,107360.0,107350.0,0.47795314]
[1750064143200,0.04933046,107360.0,107350.0,0.90887424]
[1750064143436,0.04933046,107360.0,107350.0,0.32699314]
[1750064143643,0.06483046,107360.0,107350.0,0.46341314]
[1750064144406,0.06483046,107360.0,107350.0,0.31149314]
[1750064144613,0.06483046,107360.0,107350.0,0.46341314]
[1750064145767,0.01005046,107360.0,107350.0,0.92433424]
[1750064145986,0.51145156,107360.0,107350.0,0.31149314]
[1750064146416,0.8700795,107360.0,107350.0,0.1966217]
[1750064146644,0.85145156,107360.0,107350.0,0.36717138]
[1750064146863,0.87939362,107360.0,107350.0,0.36717138]
[1750064147074,0.53007934,107360.0,107350.0,0.36717138]
[1750064147471,0.53007934,107360.0,107350.0,0.21525138]
[1750064147716,0.53007934,107360.0,107350.0,0.36717138]
[1750064148460,0.53939353,107360.0,107350.0,0.36717138]
[1750064148677,0.53007934,107360.0,107350.0,0.36717138]
[1750064148896,0.53007934,107360.0,107350.0,0.21525138]
[1750064149117,0.53939344,107360.0,107350.0,0.36717138]
[1750064149573,0.53007934,107360.0,107350.0,0.36717138]
[1750064151262,0.53939353,107360.0,107350.0,0.36717138]
[1750064151670,0.53007934,107360.0,107350.0,0.36717138]
[1750064152093,0.53939353,107360.0,107350.0,0.36717138]
[1750064152303,0.53939353,107360.0,107350.0,0.21525138]
[1750064152508,0.54870781,107360.0,107350.0,0.36717138]
[1750064153753,0.74431138,107360.0,107350.0,0.36717155]
[1750064153961,0.55802226,107360.0,107350.0,0.36717155]
[1750064154170,0.54870781,107360.0,107350.0,0.37648626]
[1750064155190,0.55802217,107360.0,107350.0,0.37648626]
[1750064155702,0.54870841,107360.0,107350.0,0.37648626]
[1750064155850,0.55802286,107360.0,107350.0,0.37648626]
[1750064156507,0.11878731,107360.0,107350.0,0.37648626]
[1750064156642,0.53939405,107360.0,107350.0,0.37648626]
[1750064157415,0.53007977,107360.0,107350.0,0.37648626]
[1750064158348,0.53939405,107360.0,107350.0,0.37648626]
[1750064158747,0.53939405,107360.0,107350.0,0.37548626]
[1750064158977,0.53007977,107360.0,107350.0,0.37548626]
[1750064159902,0.54039405,107360.0,107350.0,0.37548626]
[1750064160498,0.54039405,107360.0,107350.0,0.22356626]
[1750064160698,0.54039405,107360.0,107350.0,0.37548626]
[1750064161275,0.54039405,107360.0,107350.0,0.27078008]
[1750064161457,0.54039405,107360.0,107350.0,0.28009531]
[1750064162107,0.53107934,107360.0,107350.0,0.28009531]
[1750064162320,0.54039344,107360.0,107350.0,0.28009531]
[1750064164038,0.54970772,107360.0,107350.0,0.28009531]
[1750064164249,0.54970772,107360.0,107350.0,0.12817531]
[1750064164464,0.54970772,107360.0,107350.0,0.28009531]
[1750064165064,0.9799249,107360.0,107350.0,0.28009531]
[1750064166095,0.97061062,107360.0,107350.0,0.28009531]
[1750064166843,0.9799249,107360.0,107350.0,0.28009531]
[1750064167075,0.98923909,107360.0,107350.0,0.28009531]
[1750064168214,0.97992481,107360.0,107350.0,0.28009531]
[1750064168392,0.97061062,107360.0,107350.0,0.28009531]
[1750064169054,0.9799249,107360.0,107350.0,0.28009531]
[1750064170325,0.9406449,107360.0,107350.0,0.28009531]
[1750064170533,0.97061062,107360.0,107350.0,0.28009531]
[1750064170948,0.9799249,107360.0,107350.0,0.28009531]
[1750064171277,0.97992481,107360.0,107350.0,0.28009531]
[1750064171958,0.98923909,107360.0,107350.0,0.28009531]
[1750064172340,0.97992481,107360.0,107350.0,0.28009531]
[1750064173283,0.97061062,107360.0,107350.0,0.28009531]
[1750064173899,0.9519825,107360.0,107350.0,0.28009531]
[1750064174841,0.96129643,107360.0,107350.0,0.28009531]